[Event "NED-ch U14 Youth 2019"]
[Site "Assen"]
[Date "2019.05.04"]
[Round "9.10"]
[White "Tiggelman, Vincent"]
[Black "Shadrin, Mitia"]
[Result "0-1"]
[ECO "A05"]
[WhiteElo "1378"]
[BlackElo "1692"]
[Annotator "NA RC"]
[PlyCount "64"]
[EventDate "2019.04.28"]
[EventType "swiss"]
[EventCountry "NED"]
[SourceTitle "playchess.com"]
[Source "ChessBase"]
[SourceQuality "1"]
[TimeControl "5400+30"]

1. e4 {[%emt 0:00:00]} c5 {[%emt 0:00:00]} 2. Nf3 {[%emt 0:00:00]} g6 {[%emt 0:00:28]} 3. g3 {[%emt 0:01:10]} Bg7 {[%emt 0:00:17]} 4. Bg2 {[%emt 0:00:15]} Nc6 {[%emt 0:00:49]} 5. d3 {[%emt 0:00:15]} d6 {[%emt 0:01:07]} 6. Nbd2 {[%emt 0:00:25]} Nf6 {[%emt 0:00:09]} 7. O-O {[%emt 0:00:07]} O-O {[%emt 0:00:05]} 8. Re1 {[%emt 0:00:21]} b5 {[%emt 0:01:38]} 9. Nf1 {[%emt 0:00:44]} a5 {[%emt 0:02:01]} 10. h4 {[%emt 0:00:39]} h5 {[%emt 0:05:56]} 11. Ng5 {[%emt 0:07:25]} Ra6 {[%emt 0:02:40]} 12. Ne3 {[%emt 0:10:22]} Ng4 {[%emt 0:02:32]} 13. Nxg4 {[%emt 0:02:23]} Bxg4 {[%emt 0:00:12]} 14. f3 {[%emt 0:00:06]} Bd7 {[%emt 0:00:10]} 15. Rf1 {[%emt 0:00:26]} a4 {[%emt 0:01:14]} 16. f4 {[%emt 0:00:48]} f5 {[%emt 0:01:14]} 17. e5 {[%emt 0:03:29]} dxe5 {[%emt 0:02:47]} 18. Bd5+ {[%emt 0:00:37]} e6 {[%emt 0:03:03]} 19. Bxe6+ {[%emt 0:01:00]} Bxe6 {[%emt 0:00:04]} 20. Nxe6 {[%emt 0:00:07]} Qd6 {[%emt 0:00:43]} 21. Nxf8 {[%emt 0:00:14]} Qxf8 {[%emt 0:00:04]} 22. fxe5 {[%emt 0:01:07]} Nxe5 {[%emt 0:00:11]} 23. Qe2 {[%emt 0:01:17]} Ng4 {[%emt 0:00:44]} 24. c3 {[%emt 0:01:33]} b4 {[%emt 0:01:13]} 25. Bd2 {[%emt 0:00:33]} a3 {[%emt 0:01:03]} 26. b3 {[%emt 0:14:43]} bxc3 {[%emt 0:00:20]} 27. d4 {[%emt 0:02:47]} Bxd4+ {[%emt 0:02:00]} 28. Kh1 {[%emt 0:06:18]} Qa8+ {[%emt 0:01:20]} 29. Rf3 {[%emt 0:00:13]} cxd2 {[%emt 0:00:14]} 30. Rd1 {[%emt 0:00:12]} Nf2+ {[%emt 0:00:48]} 31. Kg2 {[%emt 0:00:33]} Nxd1 {[%emt 0:00:09]} 32. Qxd1 {[%emt 0:00:03]} Re6 {[%emt 0:00:58]} 0-1

[Event "NED-ch U14 Youth 2019"]
[Site "Assen"]
[Date "2019.05.04"]
[Round "9.11"]
[White "De Putter, Sven"]
[Black "De Heij, Mees"]
[Result "0-1"]
[ECO "B33"]
[WhiteElo "1381"]
[BlackElo "1524"]
[Annotator "NA RC"]
[PlyCount "50"]
[EventDate "2019.04.28"]
[EventType "swiss"]
[EventCountry "NED"]
[SourceTitle "playchess.com"]
[Source "ChessBase"]
[SourceQuality "1"]
[TimeControl "5400+30"]

1. e4 {[%emt 0:00:00]} c5 {[%emt 0:00:00]} 2. Nf3 {[%emt 0:00:00]} Nc6 {[%emt 0:00:00]} 3. d4 {[%emt 0:00:00]} cxd4 {[%emt 0:00:00]} 4. Nxd4 {[%emt 0:00:00]} Nf6 {[%emt 0:00:00]} 5. Nc3 {[%emt 0:00:00]} e5 {[%emt 0:00:04]} 6. Ndb5 {[%emt 0:00:00]} d6 {[%emt 0:00:08]} 7. Bg5 {[%emt 0:00:10]} a6 {[%emt 0:00:16]} 8. Na3 {[%emt 0:00:08]} b5 {[%emt 0:00:13]} 9. Bxf6 {[%emt 0:00:08]} Qxf6 {[%emt 0:01:26]} 10. Nd5 {[%emt 0:00:30]} Qd8 {[%emt 0:00:04]} 11. c3 {[%emt 0:02:04]} Be7 {[%emt 0:02:14]} 12. Nc2 {[%emt 0:00:55]} Bb7 {[%emt 0:02:59]} 13. Nce3 {[%emt 0:01:44]} Bg5 {[%emt 0:06:03]} 14. Bd3 {[%emt 0:05:14]} O-O {[%emt 0:01:31]} 15. Qg4 {[%emt 0:03:12]} Bxe3 {[%emt 0:06:18]} 16. Nxe3 {[%emt 0:00:56]} Rc8 {[%emt 0:08:03]} 17. Nd5 {[%emt 0:02:13]} h6 {[%emt 0:01:45]} 18. h4 {[%emt 0:02:37]} Kh8 {[%emt 0:06:11]} 19. Rh3 {[%emt 0:02:43]} Ne7 {[%emt 0:03:31]} 20. Rf3 {[%emt 0:06:47]} Nxd5 {[%emt 0:05:11]} 21. Rg3 {[%emt 0:04:37]} Qf6 {[%emt 0:01:35]} 22. exd5 {[%emt 0:00:39]} Bxd5 {[%emt 0:00:35]} 23. h5 {[%emt 0:03:27]} Rfe8 {[%emt 0:16:11]} 24. Kf1 {[%emt 0:03:52]} e4 {[%emt 0:06:42]} 25. Bc2 {[%emt 0:01:14]} e3 {[%emt 0:01:41]} 0-1

[Event "NED-ch U14 Youth 2019"]
[Site "Assen"]
[Date "2019.05.04"]
[Round "9.12"]
[White "Labruyere, Roger"]
[Black "Yeh, Timo"]
[Result "0-1"]
[ECO "C26"]
[WhiteElo "1922"]
[BlackElo "1783"]
[Annotator "NA RC"]
[PlyCount "56"]
[EventDate "2019.04.28"]
[EventType "swiss"]
[EventCountry "NED"]
[SourceTitle "playchess.com"]
[Source "ChessBase"]
[SourceQuality "1"]
[TimeControl "5400+30"]

{[%evp 8,49,7,-10,6,32767,32767,32767,32767,32767,32767,0,33,32767,32767,32767,32767,32767,26,27,32767,25,23,0,-1,0,0,0,0,0,0,0,0,2,2,0,0,0,-7,-52,-51,-437,-451,-455]} 1. e4 {[%emt 0:00:00]} e5 {[%emt 0:00:00]} 2. Nc3 {[%emt 0:00:00]} Nf6 {[%emt 0:00:00]} 3. g3 {[%emt 0:00:00]} Bc5 {[%emt 0:00:00]} 4. Bg2 {[%emt 0:00:00]} d6 {[%emt 0:00:03]} 5. Nge2 {[%emt 0:00:00]} Nc6 {[%emt 0:00:17]} 6. O-O {[%emt 0:00:06]} O-O {[%emt 0:00:21]} 7. Na4 {[%emt 0:01:29]} Bb6 {[%emt 0:00:20]} 8. Nxb6 {[%emt 0:00:06]} axb6 {[%emt 0:00:02]} 9. d3 {[%emt 0:00:17]} Re8 {[%emt 0:00:17]} 10. c3 {[%emt 0:00:20] C26: Vienna Game: 2...Nf6, sidelines} (10. c4 Bd7 11. h3 Nb4 12. Nc3 h6 13. f4 exf4 14. gxf4 c6 15. a3 Na6 16. d4 Nh7 17. Kh2 Nc7 {½-½ (32) Kivisto,M (2257)-Tuominen,R (2283) Finland 2017}) 10... d5 $146 {[%emt 0:00:17]} ({Predecessor:} 10... h6 11. h3 Be6 12. a4 Na5 13. Be3 Qd7 14. Kh2 Bb3 {0-1 (43) Khalil,R (1297)-Mezioud,A (2065) Sharjah 2018}) 11. exd5 {[%emt 0:03:01]} Nxd5 {[%emt 0:00:14]} 12. d4 {[%emt 0:00:26]} exd4 {[%emt 0:03:07]} 13. Nxd4 {[%emt 0:00:08]} Nxd4 {[%emt 0:00:39]} 14. Qxd4 {[%emt 0:00:15]} Be6 {[%emt 0:00:37]} 15. Bf4 {[%emt 0:05:12]} c5 {[%emt 0:01:51]} 16. Qd2 {[%emt 0:03:52]} Nxf4 {[%emt 0:02:11]} 17. Qxf4 {[%emt 0:00:04]} Rxa2 {[%emt 0:00:32]} 18. Rxa2 {[%emt 0:00:39]} Bxa2 {[%emt 0:00:01]} 19. Bxb7 {[%emt 0:01:51]} Qe7 {[%emt 0:03:31]} 20. Bc6 {[%emt 0:06:24]} Rd8 {[%emt 0:02:03]} 21. Be4 {[%emt 0:08:11]} g6 {[%emt 0:02:08]} 22. Re1 {[%emt 0:04:30]} Qd6 {[%emt 0:00:34]} 23. Qh4 {[%emt 0:09:25]} Re8 {[%emt 0:01:46]} 24. Re3 $19 {[%emt 0:05:24]} (24. Qg5 $15) 24... Qd1+ {[%emt 0:01:37]} 25. Kg2 {[%emt 0:01:33]} Bc4 {[%emt 0:00:30]} 26. Kh3 {[%emt 0:07:21]} Rxe4 {[%emt 0:00:36]} 27. Qxe4 {[%emt 0:01:26]} Bf1+ {[%emt 0:00:08]} 28. Qg2 {[%emt 0:00:07]} Qh5# {[%emt 0:00:36]} 0-1

[Event "NED-ch U14 Youth 2019"]
[Site "Assen"]
[Date "2019.05.04"]
[Round "9.13"]
[White "Dekker, Thiemen"]
[Black "Bakija, Alan"]
[Result "0-1"]
[ECO "B14"]
[WhiteElo "1521"]
[BlackElo "1580"]
[Annotator "NA RC"]
[PlyCount "114"]
[EventDate "2019.04.28"]
[EventType "swiss"]
[EventCountry "NED"]
[SourceTitle "playchess.com"]
[Source "ChessBase"]
[SourceQuality "1"]
[TimeControl "5400+30"]

1. e4 {[%emt 0:00:00]} c6 {[%emt 0:00:00]} 2. d4 {[%emt 0:00:00]} d5 {[%emt 0:00:00]} 3. exd5 {[%emt 0:00:00]} cxd5 {[%emt 0:00:00]} 4. c4 {[%emt 0:00:00]} e6 {[%emt 0:00:00]} 5. Nc3 {[%emt 0:00:19]} Nc6 {[%emt 0:00:08]} 6. Nf3 {[%emt 0:00:17]} Nf6 {[%emt 0:01:31]} 7. Bg5 {[%emt 0:00:21]} Be7 {[%emt 0:00:06]} 8. c5 {[%emt 0:00:21]} Bd7 {[%emt 0:00:13]} 9. Bb5 {[%emt 0:03:00]} a6 {[%emt 0:01:47]} 10. Bxc6 {[%emt 0:02:11]} Bxc6 {[%emt 0:01:13]} 11. Ne5 {[%emt 0:00:32]} Nd7 {[%emt 0:01:19]} 12. Bxe7 {[%emt 0:01:23]} Qxe7 {[%emt 0:00:18]} 13. Nxd7 {[%emt 0:05:07]} Qxd7 {[%emt 0:00:31]} 14. a4 {[%emt 0:00:57]} O-O {[%emt 0:01:00]} 15. O-O {[%emt 0:03:19]} Rab8 {[%emt 0:01:06]} 16. a5 {[%emt 0:01:53]} Rbe8 {[%emt 0:01:57]} 17. Na4 {[%emt 0:02:03]} e5 {[%emt 0:01:40]} 18. Nb6 {[%emt 0:01:37]} Qf5 {[%emt 0:00:40]} 19. Re1 {[%emt 0:03:37]} Re7 {[%emt 0:02:16]} 20. Qb3 {[%emt 0:05:11]} e4 {[%emt 0:01:50]} 21. f3 {[%emt 0:08:57]} Rfe8 {[%emt 0:01:57]} 22. fxe4 {[%emt 0:02:40]} Rxe4 {[%emt 0:00:08]} 23. Rxe4 {[%emt 0:04:47]} Qxe4 {[%emt 0:01:58]} 24. Qc3 {[%emt 0:08:53]} Qe3+ {[%emt 0:02:25]} 25. Qxe3 {[%emt 0:00:35]} Rxe3 {[%emt 0:00:09]} 26. Rd1 {[%emt 0:08:33]} Re2 {[%emt 0:11:35]} 27. b3 {[%emt 0:03:12]} Re3 {[%emt 0:02:34]} 28. b4 {[%emt 0:01:08]} f6 {[%emt 0:02:55]} 29. Rb1 {[%emt 0:07:16]} Rd3 {[%emt 0:00:21]} 30. Nc8 {[%emt 0:00:16]} Kf8 {[%emt 0:04:04]} 31. Nd6 {[%emt 0:07:04]} Rxd4 {[%emt 0:00:54]} 32. b5 {[%emt 0:00:36]} axb5 {[%emt 0:00:26]} 33. Nxb5 {[%emt 0:00:13]} Ra4 {[%emt 0:00:27]} 34. Nd6 {[%emt 0:06:22]} Rxa5 {[%emt 0:00:10]} 35. Nxb7 {[%emt 0:00:06]} Bxb7 {[%emt 0:00:14]} 36. Rxb7 {[%emt 0:00:02]} Rxc5 {[%emt 0:00:01]} 37. Kf2 {[%emt 0:00:34]} d4 {[%emt 0:02:05]} 38. Rd7 {[%emt 0:00:57]} Rc2+ {[%emt 0:05:07]} 39. Kf3 {[%emt 0:00:21]} Rd2 {[%emt 0:00:37]} 40. h3 {[%emt 0:01:28]} d3 {[%emt 0:00:31]} 41. g3 {[%emt 0:01:40]} Rd1 {[%emt 0:00:46]} 42. Ke3 {[%emt 0:00:50]} Rg1 {[%emt 0:00:30]} 43. Kf3 {[%emt 0:00:23]} Rd1 {[%emt 0:00:42]} 44. Ke3 {[%emt 0:00:15]} h6 {[%emt 0:01:36]} 45. Rxd3 {[%emt 0:00:11]} Rxd3+ {[%emt 0:00:10]} 46. Kxd3 {[%emt 0:00:05]} Kf7 {[%emt 0:00:11]} 47. Ke4 {[%emt 0:03:21]} Ke6 {[%emt 0:00:58]} 48. h4 {[%emt 0:00:17]} f5+ {[%emt 0:34:58]} 49. Kf4 {[%emt 0:00:21]} g6 {[%emt 0:01:36]} 50. g4 {[%emt 0:11:29]} fxg4 {[%emt 0:00:42]} 51. Kxg4 {[%emt 0:00:00]} Ke5 {[%emt 0:00:41]} 52. h5 {[%emt 0:00:00]} g5 {[%emt 0:00:18]} 53. Kf3 {[%emt 0:00:00]} Kd4 {[%emt 0:01:06]} 54. Kg3 {[%emt 0:00:00]} Ke3 {[%emt 0:00:41]} 55. Kg4 {[%emt 0:00:00]} Ke4 {[%emt 0:00:07]} 56. Kg3 {[%emt 0:00:00]} Kf5 {[%emt 0:00:09]} 57. Kh3 {[%emt 0:00:00]} Kf4 {[%emt 0:00:12]} 0-1